bitfinex/quotes_SOLUSD_20241019
["timestamp","ask_amount","ask_price","bid_price","bid_amount"]
[1729376219964,6.3494,157.5,157.44,30.128184]
[1729376221659,6.3494,157.5,157.43,15.7547]
[1729376221848,6.3494,157.5,157.45,6.3512]
[1729376222772,6.3487,157.52,157.46,6.3505]
[1729376223058,6.348,157.53,157.48,6.3499]
[1729376225172,6.3475,157.55,157.5,6.3491]
[1729376225465,6.3475,157.55,157.5,6.349]
[1729376226156,22.8986,157.57,157.47,22.2408]
[1729376226360,16.232,157.57,157.47,22.2408]
[1729376226570,6.3468,157.56,157.48,23.776884]
[1729376226941,6.3468,157.56,157.51,6.3485]
[1729376228257,6.3461,157.58,157.53,6.3479]
[1729376228444,6.3463,157.57,157.53,6.3479]
[1729376228641,6.60975349,157.6,157.53,6.3479]
[1729376228867,6.346,157.58,157.53,6.3479]
[1729376229045,6.60975349,157.6,157.48,23.776884]
[1729376229245,12.95495349,157.6,157.49,6.3496]
[1729376229482,12.95495349,157.6,157.54,6.3472]
[1729376230976,6.60975349,157.6,157.54,6.3472]
[1729376231183,6.3455,157.59,157.54,6.3472]
[1729376233861,6.60975349,157.6,157.52,43.776884]
[1729376234060,6.3451,157.6,157.55,6.3469]
[1729376238075,6.3456,157.59,157.51,15.6919]
[1729376238384,6.3456,157.59,157.52,27.06262049]
[1729376238562,6.3456,157.59,157.53,3.28573649]
[1729376239084,16.2103,157.62,157.53,3.28573649]
[1729376239289,6.3459,157.58,157.52,3.28573649]
[1729376239985,6.3464,157.57,157.52,3.28573649]
[1729376240188,6.347,157.56,157.48,20.0]
[1729376240373,6.3468,157.56,157.51,6.3487]
[1729376247708,6.3477,157.54,157.47,22.178]
[1729376247884,6.3477,157.54,157.5,6.3491]
[1729376248084,6.3477,157.54,157.47,15.6919]
[1729376248284,6.3477,157.54,157.49,6.3496]
[1729376258617,6.3477,157.54,157.5,3.29233511]
[1729376261020,6.3477,157.54,157.49,6.3496]
[1729376261198,6.3477,157.54,157.5,3.29273529]
[1729376261398,6.3477,157.54,157.5,6.58551246]
[1729376265024,6.3477,157.54,157.49,6.3496]
[1729376265423,6.3477,157.54,157.5,3.29374397]
[1729376269125,6.3477,157.54,157.51,3.29374397]
[1729376269312,6.3477,157.54,157.5,3.29374397]
[1729376269506,6.3477,157.54,157.51,3.29374397]
[1729376269706,6.3477,157.54,157.5,3.29374397]
[1729376269907,6.3477,157.54,157.51,3.29374397]
[1729376270115,6.3477,157.54,157.5,3.29374397]
[1729376270314,6.3477,157.54,157.51,3.29374397]
[1729376270514,6.3477,157.54,157.5,3.29374397]
[1729376270717,6.3477,157.54,157.51,3.29374397]
[1729376270917,6.3477,157.54,157.5,3.29374397]
[1729376271125,6.3477,157.54,157.51,3.29374397]
[1729376271429,6.3477,157.54,157.5,3.29374397]
[1729376271633,6.3477,157.54,157.51,3.29374397]
[1729376271938,6.3477,157.54,157.5,3.29374397]
[1729376272235,22.82354795,157.57,157.51,3.29374397]
[1729376272524,6.3474,157.55,157.51,3.29374397]
[1729376272903,6.3474,157.55,157.51,3.29629256]
[1729376277129,6.3474,157.55,157.5,6.349]
[1729376277307,6.3474,157.55,157.51,3.29654718]
[1729376278135,6.3474,157.55,157.52,3.29654718]
[1729376278326,6.3474,157.55,157.51,3.29650656]
[1729376278521,6.3474,157.55,157.52,3.29650656]
[1729376278721,6.3474,157.55,157.51,3.29650656]
[1729376278921,6.3474,157.55,157.52,3.29650656]
[1729376279115,6.3474,157.55,157.51,3.29650656]
[1729376279315,6.3474,157.55,157.5,6.349]
[1729376279516,6.3474,157.55,157.51,3.2969157]
[1729376279719,6.3474,157.55,157.52,3.2969157]
[1729376279911,6.3474,157.55,157.51,3.2969157]
[1729376280127,6.3474,157.55,157.52,3.2969157]
[1729376280319,6.3474,157.55,157.51,3.2969157]
[1729376280633,6.3474,157.55,157.52,3.2969157]
[1729376280947,6.3474,157.55,157.51,3.29743139]
[1729376281125,6.3474,157.55,157.52,3.29743177]
[1729376281305,6.3474,157.55,157.5,6.349]
[1729376281510,6.3474,157.55,157.51,3.29822261]
[1729376281730,6.3474,157.55,157.52,3.29822261]
[1729376281916,6.3474,157.55,157.5,6.349]
[1729376282118,6.3474,157.55,157.51,3.29826066]
[1729376282316,6.3474,157.55,157.5,6.349]
[1729376282317,6.3474,157.55,157.52,3.29826066]
[1729376282534,6.3474,157.55,157.5,6.349]
[1729376282713,6.3474,157.55,157.51,3.29926234]
[1729376282914,6.3474,157.55,157.52,3.29926234]
[1729376283120,6.3474,157.55,157.5,6.349]
[1729376283317,6.3474,157.55,157.51,3.30064829]
[1729376283535,6.3474,157.55,157.52,3.30064829]
[1729376283845,6.3474,157.55,157.5,6.349]
[1729376284048,6.3474,157.55,157.51,3.30068588]
[1729376284221,6.3474,157.55,157.52,3.30068588]
[1729376284422,6.3474,157.55,157.53,3.30068588]
[1729376284620,6.3474,157.55,157.5,6.349]
[1729376284838,6.3474,157.55,157.51,3.3021348]
[1729376285041,6.3474,157.55,157.52,3.3021348]
[1729376285244,6.3474,157.55,157.53,3.3021348]
[1729376285421,6.3474,157.55,157.5,6.349]
[1729376285623,6.3474,157.55,157.51,3.30283758]
[1729376285941,6.3474,157.55,157.52,3.30283758]
[1729376286140,6.3474,157.55,157.5,6.349]
[1729376289720,16.2103,157.57,157.47,15.6919]
[1729376290036,6.3477,157.54,157.47,15.6919]
[1729376290215,6.3477,157.54,157.48,6.35]
[1729376290415,6.3477,157.54,157.39,6.61003271]
[1729376290619,41.1148,157.52,157.43,6.3518]
[1729376290924,22.0648,157.56,157.4,16.1576]
[1729376291127,6.3482,157.53,157.47,6.35]
[1729376291323,22.0648,157.56,157.47,6.35]
[1729376291541,6.3484,157.52,157.47,6.35]
[1729376293638,6.348,157.53,157.42,6.3247]
[1729376293844,6.348,157.53,157.44,23.776884]
[1729376296929,22.0648,157.56,157.44,23.776884]
[1729376297241,6.3472,157.55,157.46,39.934484]
[1729376297775,6.3476,157.54,157.46,39.934484]
[1729376298060,15.9526,157.56,157.46,39.934484]
[1729376298284,22.2993,157.56,157.48,23.776884]
[1729376298634,6.3479,157.54,157.46,16.1576]
[1729376298859,6.3479,157.54,157.47,23.776884]
[1729376301139,22.2995,157.56,157.47,23.776884]
[1729376301339,15.9526,157.56,157.47,23.776884]
[1729376301547,6.3473,157.55,157.47,23.776884]
[1729376303341,6.3476,157.54,157.47,23.776884]
[1729376306838,15.12600771,157.59,157.47,23.776884]
[1729376307046,6.3466,157.57,157.47,23.776884]
[1729376307239,15.12600771,157.59,157.47,23.776884]
[1729376307548,21.47160771,157.59,157.5,20.0]
[1729376307757,14.85907923,157.59,157.51,23.776884]
[1729376310043,6.3451,157.61,157.51,40.237184]
[1729376310257,6.3451,157.6,157.51,40.237184]
[1729376312646,6.3446,157.62,157.52,20.0]
[1729376312850,6.3446,157.62,157.53,23.776884]
[1729376313060,6.3446,157.62,157.51,40.237184]
[1729376313261,6.3446,157.62,157.53,23.776884]
[1729376313457,6.3441,157.63,157.53,23.776884]
[1729376313781,6.61662943,157.66,157.55,23.776884]
[1729376313965,37.5635,157.68,157.55,23.776884]
[1729376314148,6.3434,157.65,157.55,23.776884]
[1729376316176,44.1793383,157.68,157.55,23.776884]
[1729376316351,6.3437,157.64,157.55,23.776884]
[1729376318778,44.1793383,157.68,157.55,23.776884]
[1729376319149,6.3432,157.65,157.56,20.0]
[1729376319357,6.3432,157.65,157.57,23.776884]
[1729376319874,6.3432,157.65,157.56,20.0]
[1729376320266,15.8559,157.67,157.56,20.0]
[1729376320453,6.3446,157.62,157.56,23.776884]
[1729376321977,6.344,157.63,157.56,23.776884]
[1729376331188,6.62457087,157.66,157.56,23.776884]
[1729376331376,6.3436,157.64,157.56,23.776884]
[1729376331867,6.3434,157.65,157.56,23.776884]
[1729376332185,6.3423,157.67,157.56,23.776884]
[1729376332584,6.3423,157.67,157.58,23.776884]
[1729376337384,6.3436,157.64,157.58,23.776884]
[1729376337691,21.708,157.68,157.58,23.776884]
[1729376337871,6.3436,157.64,157.58,23.776884]
[1729376338067,6.3432,157.65,157.55,15.6263]
[1729376338265,6.3432,157.65,157.56,20.0]
[1729376338896,6.3442,157.63,157.56,20.0]
[1729376339070,6.3435,157.65,157.56,20.0]
[1729376339787,6.3435,157.65,157.57,23.776884]
[1729376341292,6.3427,157.66,157.57,23.776884]
[1729376341481,6.3439,157.64,157.57,23.776884]
[1729376341683,6.3438,157.64,157.56,23.776884]
[1729376343371,6.344,157.63,157.56,23.776884]
[1729376344073,6.3436,157.64,157.56,23.776884]
[1729376350384,22.47466391,157.67,157.56,23.776884]
[1729376350591,6.3439,157.63,157.56,23.776884]
[1729376359517,6.3436,157.64,157.56,23.776884]
[1729376373734,6.3439,157.64,157.56,23.776884]
[1729376374744,6.3448,157.61,157.55,23.776884]
[1729376375032,6.3448,157.61,157.54,23.776884]
[1729376375626,15.1019,157.63,157.53,8.20127936]
[1729376375828,6.208,157.62,157.53,8.20127936]
[1729376377537,6.3463,157.58,157.53,8.20127936]
[1729376379331,6.208,157.62,157.53,8.20127936]
[1729376380143,6.3465,157.57,157.53,8.20127936]
[1729376380318,6.3465,157.57,157.47,40.263584]
[1729376381633,15.1019,157.58,157.47,40.263584]
[1729376381833,6.3482,157.53,157.46,1.10352836]
[1729376382045,6.3482,157.53,157.43,23.1065681]
[1729376382046,34.1519,157.56,157.43,16.4867]
[1729376382333,19.05,157.55,157.41,8.26784027]
[1729376382910,6.3499,157.49,157.41,8.26784027]
[1729376383831,6.3483,157.53,157.42,20.0]
[1729376384043,6.3479,157.54,157.42,20.0]
[1729376385025,6.3479,157.54,157.44,20.0]
[1729376385208,6.3479,157.54,157.45,23.776884]
[1729376387727,6.3472,157.55,157.45,23.776884]
[1729376388515,15.1019,157.56,157.47,23.776884]
[1729376388712,15.1019,157.56,157.49,23.776884]
[1729376389634,6.346,157.58,157.49,23.776884]
[1729376389837,6.3456,157.59,157.51,23.776884]
[1729376390420,6.3456,157.59,157.5,20.0]
[1729376390624,6.3456,157.59,157.51,23.776884]
[1729376393045,22.8576,157.6,157.51,23.776884]
[1729376393826,11.5820114,157.61,157.52,20.0]
[1729376394345,11.5820114,157.61,157.53,23.776884]
[1729376394936,6.3444,157.62,157.53,23.776884]
[1729376396554,22.8559,157.64,157.54,20.0]
[1729376396771,6.344,157.63,157.55,23.776884]
[1729376399781,16.5124,157.64,157.55,23.776884]
[1729376400058,22.8559,157.64,157.55,23.776884]
[1729376400861,16.5124,157.64,157.56,20.0]
[1729376401065,16.5124,157.68,157.57,39.709284]
[1729376401244,6.3425,157.67,157.57,39.709284]
[1729376403544,6.3427,157.66,157.57,39.709284]
[1729376403747,6.3427,157.66,157.59,23.776884]
[1729376404263,6.3427,157.66,157.57,15.9324]
[1729376404264,6.3427,157.66,157.58,23.776884]
[1729376404465,6.3427,157.66,157.58,43.776884]
[1729376405365,16.5124,157.68,157.58,43.776884]
[1729376406065,6.3369,157.7,157.58,43.776884]
[1729376406661,6.3417,157.69,157.58,43.776884]
[1729376407166,6.3421,157.68,157.58,20.0]
[1729376408359,6.3369,157.7,157.61,23.776884]
[1729376408546,12.678,157.7,157.61,23.776884]
[1729376410161,6.3369,157.7,157.61,23.776884]
[1729376412753,6.3409,157.71,157.61,23.776884]
[1729376414272,6.3409,157.71,157.63,23.776884]
[1729376416673,16.5124,157.72,157.63,23.776884]
[1729376416854,6.3413,157.7,157.63,23.776884]
[1729376417251,6.3407,157.71,157.63,23.776884]
[1729376420070,16.5124,157.72,157.63,23.776884]
[1729376420254,16.5124,157.72,157.65,23.776884]
[1729376420453,6.2049,157.74,157.65,23.776884]
[1729376420654,6.3389,157.76,157.65,23.776884]
[1729376420853,15.3008,157.77,157.59,7.95757974]
[1729376421051,6.3403,157.72,157.61,15.4028]
[1729376421356,12.5442,157.75,157.62,23.776884]
[1729376422361,12.5442,157.75,157.65,20.0]
[1729376422863,12.5442,157.75,157.66,23.776884]
[1729376426872,6.3399,157.74,157.66,23.776884]
[1729376427174,6.3409,157.71,157.62,20.0]
[1729376428374,6.3409,157.71,157.64,20.0]
[1729376429079,6.2049,157.75,157.64,20.0]
[1729376429397,6.3404,157.72,157.64,20.0]
[1729376431653,6.3408,157.71,157.62,23.776884]
[1729376431854,16.0328,157.72,157.63,20.0]
[1729376432056,6.3411,157.7,157.63,20.0]
[1729376433276,6.3411,157.7,157.62,23.776884]
[1729376435293,6.3416,157.69,157.61,15.4028]
[1729376435905,6.341,157.71,157.62,23.776884]
[1729376443503,6.3414,157.7,157.62,23.776884]
[1729376443801,6.3415,157.69,157.61,20.0]
[1729376444677,6.3415,157.69,157.59,20.0]
[1729376444880,6.6188,157.7,157.61,20.0]
[1729376445190,6.3408,157.71,157.62,23.776884]
[1729376445602,6.3415,157.7,157.62,23.776884]
[1729376447112,6.3415,157.7,157.61,20.0]
[1729376447288,6.3415,157.69,157.58,43.776884]
[1729376448593,6.3407,157.71,157.58,43.776884]
[1729376449218,16.0328,157.72,157.58,43.776884]
[1729376449516,6.3408,157.71,157.58,43.776884]
[1729376460296,16.0328,157.72,157.58,43.776884]
[1729376460623,6.342,157.68,157.58,20.0]
[1729376461211,6.3413,157.7,157.58,20.0]
[1729376461900,6.3413,157.7,157.6,20.0]
[1729376462310,6.3415,157.69,157.61,23.776884]
[1729376463021,6.3832,157.71,157.6,20.0]
[1729376463206,21.7439,157.67,157.6,20.0]
[1729376463830,6.4882,157.66,157.54,15.95440307]
[1729376464120,6.3431,157.65,157.54,8.22920888]
[1729376465227,6.3431,157.65,157.56,23.776884]
[1729376468625,6.3436,157.64,157.56,23.776884]
[1729376470014,6.3432,157.65,157.56,23.776884]
[1729376472019,6.4882,157.66,157.56,23.776884]
[1729376472219,12.831,157.66,157.56,23.776884]
[1729376472422,6.4882,157.66,157.56,23.776884]
[1729376472627,6.62224392,157.69,157.6,23.776884]
[1729376472833,6.62224392,157.69,157.59,35.0616]
[1729376472834,6.6646,157.7,157.62,23.776884]
[1729376473132,13.0058,157.7,157.62,23.776884]
[1729376478643,6.6646,157.7,157.62,23.776884]
[1729376485631,13.0058,157.7,157.62,23.776884]
[1729376485840,6.3418,157.69,157.6,43.776884]
[1729376486135,6.3418,157.69,157.6,23.776884]
[1729376490744,6.342,157.68,157.6,23.776884]
[1729376491349,6.3416,157.69,157.6,23.776884]
[1729376491733,6.342,157.68,157.6,23.776884]
[1729376491941,6.6646,157.7,157.6,23.776884]
[1729376492142,6.3423,157.68,157.6,23.776884]
[1729376492652,6.3431,157.65,157.56,43.776884]
[1729376493161,6.3431,157.65,157.56,20.0]
[1729376495951,15.4305,157.66,157.57,23.776884]
[1729376496863,21.7733,157.66,157.57,23.776884]
[1729376508673,15.4305,157.66,157.57,23.776884]
[1729376510969,21.7733,157.66,157.57,23.776884]
[1729376517268,15.4305,157.66,157.57,23.776884]
[1729376517451,12.96226091,157.68,157.57,23.776884]
[1729376518980,12.96226091,157.68,157.59,23.776884]
[1729376519350,12.96226091,157.68,157.6,20.0]
[1729376520764,6.62036091,157.68,157.6,20.0]
[1729376521252,6.62036091,157.68,157.61,23.776884]
[1729376521449,28.689,157.7,157.61,23.776884]
[1729376524178,15.6833,157.7,157.62,20.0]
[1729376524381,6.3404,157.72,157.63,23.776884]
[1729376524557,6.61820836,157.73,157.63,23.776884]
[1729376525051,6.3406,157.72,157.63,23.776884]
[1729376527362,6.61820836,157.73,157.65,23.776884]
[1729376527558,6.61820836,157.73,157.65,38.915584]
[1729376527763,15.6833,157.74,157.65,38.915584]
[1729376527983,39.86190039,157.78,157.65,38.915584]
[1729376528686,39.86190039,157.78,157.67,23.776884]
[1729376528866,39.86190039,157.78,157.66,20.0]
[1729376529052,33.24504596,157.78,157.67,23.776884]
[1729376530182,6.3383,157.77,157.67,23.776884]
[1729376530564,27.11994596,157.78,157.69,23.776884]
[1729376530876,11.43664596,157.78,157.71,23.776884]
[1729376534287,15.4157,157.82,157.71,39.322084]
[1729376534585,6.3367,157.81,157.71,39.322084]
[1729376536369,15.4157,157.82,157.71,39.322084]
[1729376536586,0.37700679,157.83,157.74,20.0]
[1729376536793,0.37700679,157.83,157.75,23.776884]
[1729376540905,0.37700679,157.83,157.76,20.0]
[1729376541113,0.37700679,157.83,157.77,23.776884]
[1729376556590,0.37700679,157.83,157.76,20.0]
[1729376556789,0.37700679,157.83,157.72,43.776884]
[1729376560786,6.3363,157.82,157.72,43.776884]
[1729376561097,0.37700679,157.83,157.72,43.776884]
[1729376561485,0.37700679,157.83,157.72,52.72208097]
[1729376561684,0.37700679,157.83,157.74,43.776884]
[1729376564185,0.37700679,157.83,157.76,43.776884]
[1729376565491,6.71320679,157.83,157.71,6.4637]
[1729376565906,0.37700679,157.83,157.71,6.4637]
[1729376566807,0.37700679,157.83,157.73,23.776884]
[1729376567310,0.37700679,157.83,157.76,20.0]
[1729376569083,0.37700679,157.83,157.77,23.776884]
[1729376569286,0.37700679,157.83,157.72,20.0]
[1729376569915,0.37700679,157.83,157.74,20.0]
[1729376570284,0.37700679,157.83,157.76,20.0]
[1729376592699,0.37700679,157.83,157.77,23.776884]
[1729376593908,0.37700679,157.83,157.78,20.0]
[1729376594226,0.37700679,157.83,157.79,23.776884]
[1729376610944,0.37700679,157.83,157.81,23.776884]
[1729376627555,0.37700679,157.83,157.81,23.276884]
[1729376634238,0.37700679,157.83,157.82,43.776884]
[1729376647159,0.37700679,157.83,157.82,20.0]
[1729376647350,0.37700679,157.83,157.78,20.0]
[1729376648752,0.37700679,157.83,157.8,20.0]
[1729376656381,0.37700679,157.83,157.81,23.776884]
[1729376658787,0.37700679,157.83,157.82,43.776884]
[1729376678598,6.79e-06,157.83,157.82,43.776884]
[1729376683503,16.3426,157.9,157.86,20.0]
[1729376683901,16.3426,157.9,157.87,23.776884]
[1729376692417,16.3426,157.9,157.85,20.0]
[1729376692623,14.3426,157.9,157.84,8.731826]
[1729376694008,14.3426,157.9,157.85,23.776884]
[1729376697221,14.3426,157.9,157.84,8.731826]
[1729376697414,15.4931,157.88,157.81,1.972625]
[1729376697724,0.6320915,157.91,157.81,1.972625]
[1729376697725,15.4931,157.85,157.81,1.972625]
[1729376702401,6.0245,157.87,157.81,1.972625]
[1729376703913,6.0245,157.87,157.82,23.776884]
[1729376705034,6.0245,157.87,157.81,1.972625]
[1729376705337,12.3589,157.87,157.81,1.972625]
[1729376705640,6.0245,157.87,157.81,1.972625]
[1729376706438,6.3348,157.86,157.81,1.972625]
[1729376706733,6.0245,157.87,157.81,1.972625]
[1729376706734,6.3356,157.84,157.81,1.972625]
[1729376707110,6.5742,157.83,157.81,1.972625]
[1729376710422,12.9102,157.83,157.81,1.972625]
[1729376710640,22.8779,157.82,157.81,1.972625]
[1729376711135,16.5416,157.82,157.81,1.972625]
[1729376712837,6.5742,157.83,157.81,1.972625]
[1729376719933,29.2521,157.86,157.81,1.972625]
[1729376734959,22.9173,157.86,157.81,1.972625]
[1729376737251,16.5416,157.86,157.81,1.972625]
[1729376737458,7.0087827,157.89,157.81,1.972625]
[1729376737643,0.3945,157.89,157.81,1.972625]
[1729376746756,0.3945,157.89,157.82,23.776884]
[1729376758883,0.3945,157.89,157.83,20.0]
[1729376759379,0.3945,157.89,157.84,23.776884]
[1729376765494,0.3945,157.89,157.82,23.776884]
[1729376765870,0.3945,157.89,157.83,20.0]
[1729376768976,0.3945,157.89,157.84,23.776884]
[1729376769183,0.3945,157.89,157.85,20.0]
[1729376772072,0.3945,157.89,157.84,23.776884]
[1729376772403,0.3945,157.89,157.83,8.73289579]
[1729376773797,0.3945,157.89,157.84,20.0]
[1729376776194,0.3945,157.89,157.81,1.972625]
[1729376776195,29.4618,157.89,157.81,1.972625]
[1729376776401,23.1283,157.89,157.81,1.972625]
[1729376785880,6.335,157.86,157.81,1.972625]
[1729376792902,6.3352,157.85,157.81,1.972625]
[1729376793120,23.776884,157.88,157.81,1.972625]
[1729376793834,6.3354,157.85,157.81,1.972625]
[1729376795221,16.0245,157.84,157.81,1.972625]
[1729376798942,6.3362,157.83,157.81,1.972625]
[1729376799122,16.0245,157.84,157.81,1.972625]
[1729376799325,22.3601,157.84,157.81,1.972625]
[1729376800111,6.1965,157.86,157.81,1.972625]
[1729376800317,12.5312,157.86,157.81,1.972625]
[1729376807639,6.3347,157.86,157.81,1.972625]
[1729376807942,6.3344,157.87,157.81,1.972625]
[1729376808960,16.0245,157.88,157.81,1.972625]
[1729376809335,0.3945,157.89,157.81,1.972625]
[1729376809521,0.3945,157.89,157.81,21.972625]
[1729376809716,0.3945,157.89,157.82,23.776884]
[1729376810534,0.3945,157.89,157.83,20.0]
[1729376821640,6.7281,157.89,157.81,1.972625]
[1729376823049,0.3945,157.89,157.81,21.972625]
[1729376836763,0.3945,157.89,157.82,23.776884]
[1729376844075,0.3945,157.89,157.84,23.776884]
[1729376845860,0.3945,157.89,157.86,23.776884]
[1729376846083,0.3945,157.89,157.84,23.776884]
[1729376846389,0.3945,157.89,157.86,23.776884]
[1729376848270,0.3945,157.89,157.86,20.0]
[1729376853299,0.3945,157.89,157.87,23.776884]
[1729376857115,0.3945,157.89,157.88,43.776884]
[1729376859286,0.3945,157.89,157.88,23.776884]
[1729376860815,0.3945,157.89,157.87,8.73017967]
[1729376881900,0.3945,157.89,157.88,23.776884]
[1729376883420,0.3945,157.89,157.87,8.73017967]
[1729376883639,0.3945,157.89,157.84,20.0]
[1729376884837,0.3945,157.89,157.87,23.776884]
[1729376888314,0.3945,157.89,157.84,20.0]
[1729376888525,0.3945,157.89,157.82,20.0]
[1729376889817,0.3945,157.89,157.84,20.0]
[1729376890328,0.3945,157.89,157.85,23.776884]
[1729376893837,0.3945,157.89,157.87,23.776884]
[1729376897845,0.3945,157.89,157.82,20.0]
[1729376898437,0.3945,157.89,157.84,20.0]
[1729376898849,0.3945,157.89,157.86,20.0]
[1729376900138,0.3945,157.89,157.85,23.776884]
[1729376930598,0.3945,157.89,157.86,20.0]
[1729376941099,0.3945,157.89,157.85,32.50864938]
[1729376946708,22.6589,157.89,157.82,20.0]
[1729376947011,22.6589,157.89,157.77,15.9118]
[1729376947605,16.3254,157.89,157.77,15.9118]
[1729376948121,16.3254,157.89,157.78,23.776884]
[1729376948294,16.3254,157.89,157.81,20.0]
[1729376948687,16.3254,157.89,157.82,23.776884]
[1729376949011,16.3254,157.89,157.83,20.0]
[1729376949209,16.3254,157.89,157.84,23.776884]
[1729376952725,16.3254,157.89,157.79,20.0]
[1729376952889,16.3254,157.89,157.81,20.0]
[1729376953304,16.3254,157.89,157.83,20.0]
[1729376954193,16.3254,157.89,157.82,23.776884]
[1729376954413,22.659,157.89,157.82,23.776884]
[1729376957125,6.3339,157.88,157.82,23.776884]
[1729376957413,16.3254,157.89,157.8,23.776884]
[1729376957414,6.3346,157.87,157.8,23.776884]
[1729376957614,6.3339,157.88,157.8,23.776884]
[1729376960033,6.3346,157.87,157.79,20.0]
[1729376963535,24.80744831,157.88,157.8,23.776884]
[1729376964521,18.47344831,157.88,157.8,23.776884]
[1729376976941,24.80764831,157.88,157.8,23.776884]
[1729376993063,12.6618,157.88,157.8,23.776884]
[1729377005590,13.0553,157.88,157.8,23.776884]
[1729377008300,6.3358,157.84,157.71,16.3659]
[1729377008907,6.3358,157.84,157.71,22.97046046]
[1729377009278,12.14800187,157.85,157.73,16.5841]
[1729377009502,12.14800187,157.85,157.76,43.776884]
[1729377009699,18.48340187,157.85,157.76,43.776884]
[1729377011308,6.3357,157.84,157.76,43.776884]
[1729377012608,27.25040187,157.85,157.76,20.0]
[1729377012909,6.3359,157.83,157.71,31.68454075]
[1729377013110,6.3373,157.8,157.71,31.68454075]
[1729377013316,6.4383,157.84,157.71,25.32144075]
[1729377013493,6.3381,157.78,157.71,8.73734075]
[1729377015002,6.3383,157.77,157.71,8.73734075]
[1729377015206,15.1024,157.78,157.71,8.73734075]
[1729377015404,6.3391,157.76,157.71,8.73734075]
[1729377017827,15.1024,157.78,157.71,8.73734075]
[1729377018724,6.3387,157.77,157.71,8.73734075]
[1729377026818,15.1024,157.78,157.71,8.73734075]
[1729377026819,6.3388,157.76,157.71,8.73734075]
[1729377028028,15.1024,157.78,157.71,8.73734075]
[1729377028805,6.3394,157.75,157.71,8.73734075]
[1729377029129,6.3402,157.73,157.65,20.0]
[1729377029706,15.1024,157.78,157.65,20.0]
[1729377029902,6.3395,157.75,157.65,20.0]
[1729377030309,6.3396,157.74,157.66,23.776884]
[1729377030719,6.3396,157.74,157.68,23.776884]
[1729377031434,15.1024,157.78,157.68,23.776884]
[1729377031623,6.3389,157.76,157.68,23.776884]
[1729377031813,6.3392,157.75,157.68,23.776884]
[1729377038536,6.3386,157.77,157.68,23.776884]
[1729377038739,21.4405,157.78,157.7,23.776884]
[1729377040736,6.3384,157.77,157.7,23.776884]
[1729377042043,15.1024,157.78,157.7,23.776884]
[1729377042246,6.3387,157.76,157.7,23.776884]
[1729377049452,6.3377,157.79,157.7,23.776884]
[1729377050148,6.3367,157.81,157.72,23.776884]
[1729377050347,6.3367,157.81,157.74,23.776884]
[1729377050647,6.3367,157.81,157.72,23.776884]
[1729377050850,6.3367,157.81,157.74,23.776884]
[1729377055650,15.839,157.84,157.74,23.776884]
[1729377055651,15.6327,157.86,157.76,23.776884]
[1729377055826,6.3356,157.84,157.76,23.776884]
[1729377060851,6.3375,157.79,157.72,6.31006592]
[1729377061054,6.3382,157.78,157.69,8.74052457]
[1729377062259,6.3382,157.78,157.71,23.776884]
[1729377062637,15.6327,157.8,157.71,23.776884]
[1729377062847,6.3386,157.77,157.71,23.776884]
[1729377066760,6.3379,157.78,157.71,23.776884]
[1729377067260,6.3375,157.79,157.71,23.776884]
[1729377072042,19.53426335,157.83,157.75,23.776884]
[1729377072247,12.9277,157.83,157.75,23.776884]
[1729377073745,6.3359,157.83,157.76,16.0658]
[1729377074164,6.3356,157.84,157.77,23.776884]
[1729377074965,6.3382,157.78,157.7,16.0658]